bitfinex-derivatives/quotes_BTCF0:USTF0_20250614
["timestamp","ask_amount","ask_price","bid_price","bid_amount"]
[1749923138270,0.85091827,104590.0,104580.0,0.4364896]
[1749923138469,0.85091827,104590.0,104580.0,0.4514339]
[1749923138967,0.85091827,104590.0,104580.0,0.4364896]
[1749923139174,0.85091827,104590.0,104580.0,0.48313389]
[1749923139371,0.85091827,104590.0,104580.0,0.4681896]
[1749923139672,0.85091827,104590.0,104580.0,0.4831339]
[1749923141169,0.85091827,104590.0,104580.0,0.4681896]
[1749923141373,0.85091827,104590.0,104580.0,0.4214339]
[1749923142269,0.85091827,104590.0,104580.0,0.4064896]
[1749923142468,0.85091827,104590.0,104580.0,0.4214339]
[1749923142974,0.85091827,104590.0,104580.0,0.4064896]
[1749923143174,0.85091827,104590.0,104580.0,0.4394896]
[1749923143374,0.85091827,104590.0,104580.0,0.4544339]
[1749923143970,0.85091827,104590.0,104580.0,0.4394896]
[1749923144472,0.85091827,104590.0,104580.0,0.45443391]
[1749923145774,0.85091827,104590.0,104580.0,0.4544339]
[1749923145971,0.85091827,104590.0,104580.0,0.4866339]
[1749923147370,0.85091827,104590.0,104580.0,0.4716896]
[1749923147572,0.85091827,104590.0,104580.0,0.48663391]
[1749923148874,0.85091827,104590.0,104580.0,0.4716896]
[1749923149074,0.85091827,104590.0,104580.0,0.48663391]
[1749923149273,1.08054465,104590.0,104580.0,0.71626029]
[1749923149675,0.99102147,104590.0,104580.0,0.71626029]
[1749923150367,0.99102147,104590.0,104580.0,0.71626027]
[1749923150573,0.56682147,104590.0,104580.0,0.71626027]
[1749923150879,0.60640072,104590.0,104580.0,1.0770599]
[1749923151079,0.37677434,104590.0,104580.0,1.06211598]
[1749923151266,0.28073055,104590.0,104580.0,1.39705939]
[1749923151472,0.28073055,104590.0,104580.0,1.38211598]
[1749923151779,0.28073055,104590.0,104580.0,1.46053317]
[1749923152182,0.08957925,104590.0,104580.0,1.46053317]
[1749923152478,0.28073055,104590.0,104580.0,1.69015955]
[1749923152671,0.35769321,104590.0,104580.0,1.46053317]
[1749923153574,0.35769321,104590.0,104580.0,1.46053316]
[1749923153972,0.35769321,104590.0,104580.0,1.35521662]
[1749923153973,0.2262708,104590.0,104580.0,1.35521662]
[1749923154278,0.2262708,104590.0,104580.0,1.7101592]
[1749923154478,0.13669155,104590.0,104580.0,1.71015907]
[1749923154676,0.16654191,104590.0,104580.0,1.66546817]
[1749923154875,0.16654191,104590.0,104580.0,1.66546814]
[1749923155172,0.16654191,104590.0,104580.0,1.65052571]
[1749923155378,0.16654191,104590.0,104580.0,1.66546818]
[1749923155780,0.16654191,104590.0,104580.0,1.66746818]
[1749923156073,0.16654191,104590.0,104580.0,1.86742571]
[1749923156381,0.05971076,104590.0,104580.0,2.02467391]
[1749923156582,0.05971076,104590.0,104580.0,2.02881221]
[1749923156874,0.05971076,104590.0,104580.0,2.01387097]
[1749923157075,0.14940458,104600.0,104590.0,0.1911513]
[1749923157283,0.05982533,104600.0,104590.0,3.04341235]
[1749923157479,0.05982533,104600.0,104590.0,3.02847227]
[1749923157780,0.05982533,104600.0,104590.0,2.99873768]
[1749923157982,0.05982533,104600.0,104590.0,3.04341227]
[1749923158179,0.05982533,104600.0,104590.0,3.02847227]
[1749923158678,0.05982533,104600.0,104590.0,3.04341228]
[1749923158881,0.05982533,104600.0,104590.0,3.04341232]
[1749923159082,0.05982533,104600.0,104590.0,3.02847227]
[1749923159275,0.05982533,104600.0,104590.0,2.79884589]
[1749923159674,0.05982533,104600.0,104590.0,2.84608588]
[1749923159979,0.05982533,104600.0,104590.0,2.84608593]
[1749923160882,0.05982533,104600.0,104590.0,2.84608592]
[1749923161483,0.00014324,104600.0,104590.0,2.83114589]
[1749923161879,1e-08,104600.0,104590.0,2.89701907]
[1749923162183,1e-08,104600.0,104590.0,3.2232585]
[1749923162477,1e-08,104600.0,104590.0,3.67716269]
[1749923162688,1e-08,104600.0,104590.0,3.63259676]
[1749923163082,1e-08,104600.0,104590.0,3.63259574]
[1749923163272,1e-08,104600.0,104590.0,3.17858193]
[1749923163478,1e-08,104600.0,104590.0,3.17858194]
[1749923163780,1e-08,104600.0,104590.0,3.17858193]
[1749923163978,1e-08,104600.0,104590.0,3.18358193]
[1749923164480,1e-08,104600.0,104590.0,3.18958193]
[1749923164683,1e-08,104600.0,104590.0,3.20449265]
[1749923164977,1e-08,104600.0,104590.0,3.21942995]
[1749923165284,1e-08,104600.0,104590.0,3.20449265]
[1749923165481,1e-08,104600.0,104590.0,3.21943]
[1749923165679,1e-08,104600.0,104590.0,3.12988589]
[1749923166078,1e-08,104600.0,104590.0,3.12988586]
[1749923166778,1e-08,104600.0,104590.0,3.18917601]
[1749923167182,1e-08,104600.0,104590.0,3.17423869]
[1749923167383,1e-08,104600.0,104590.0,3.18917601]
[1749923167572,1e-08,104600.0,104590.0,3.17423869]
[1749923167775,1e-08,104600.0,104590.0,3.189176]
[1749923168181,1e-08,104600.0,104590.0,3.17423869]
[1749923168384,1e-08,104600.0,104590.0,3.39318979]
[1749923168781,1e-08,104600.0,104590.0,3.3782525]
[1749923168983,1e-08,104600.0,104590.0,3.3931898]
[1749923169179,1e-08,104600.0,104590.0,3.39318979]
[1749923169778,1e-08,104600.0,104590.0,3.19331425]
[1749923169979,1e-08,104600.0,104590.0,3.17837704]
[1749923170183,1e-08,104600.0,104590.0,3.19331426]
[1749923170482,1e-08,104600.0,104590.0,3.19331455]
[1749923170689,1e-08,104600.0,104590.0,3.17423869]
[1749923171482,1e-08,104600.0,104590.0,3.18917635]
[1749923171683,1e-08,104600.0,104590.0,2.97022488]
[1749923171883,1e-08,104600.0,104590.0,3.18917634]
[1749923172386,1e-08,104600.0,104590.0,3.17423869]
[1749923172689,1e-08,104600.0,104590.0,3.18917635]
[1749923173087,1e-08,104600.0,104590.0,3.17423869]
[1749923173285,1e-08,104600.0,104590.0,3.18917635]
[1749923173783,1e-08,104600.0,104590.0,3.18917632]
[1749923174187,1e-08,104600.0,104590.0,3.18917631]
[1749923174588,1e-08,104600.0,104590.0,3.18917632]
[1749923174784,1e-08,104600.0,104590.0,3.20449265]
[1749923174987,1e-08,104600.0,104590.0,3.21943032]
[1749923175388,1e-08,104600.0,104590.0,3.21943031]
[1749923175585,1e-08,104600.0,104590.0,3.20449265]
[1749923175793,1e-08,104600.0,104590.0,3.2194303]
[1749923175987,1e-08,104600.0,104590.0,3.20449265]
[1749923176184,1e-08,104600.0,104590.0,3.21943032]
[1749923176884,1e-08,104600.0,104590.0,3.20449265]
[1749923177690,1e-08,104600.0,104590.0,3.42344413]
[1749923177893,1e-08,104600.0,104590.0,3.40850646]
[1749923178082,1e-08,104600.0,104590.0,3.42344413]
[1749923178289,1e-08,104600.0,104590.0,3.40850646]
[1749923178594,1e-08,104600.0,104590.0,3.42344408]
[1749923178792,1e-08,104600.0,104590.0,3.4234441]
[1749923179097,1e-08,104600.0,104590.0,3.40850646]
[1749923179395,1e-08,104600.0,104590.0,3.4234441]
[1749923179788,1e-08,104600.0,104590.0,3.42344411]
[1749923180094,1e-08,104600.0,104590.0,3.1238223]
[1749923181394,1e-08,104600.0,104590.0,3.10888465]
[1749923181597,1e-08,104600.0,104590.0,3.12332367]
[1749923181891,1e-08,104600.0,104590.0,3.10838602]
[1749923182291,1e-08,104600.0,104590.0,3.12332366]
[1749923182486,1e-08,104600.0,104590.0,3.12332367]
[1749923182795,1e-08,104600.0,104590.0,3.01934054]
[1749923183092,1e-08,104600.0,104590.0,3.238292]
[1749923183297,1e-08,104600.0,104590.0,3.22335435]
[1749923183496,1e-08,104600.0,104590.0,3.2382917]
[1749923183796,1e-08,104600.0,104590.0,3.23829171]
[1749923185385,1e-08,104600.0,104590.0,3.23829168]
[1749923185598,1e-08,104600.0,104590.0,3.2382917]
[1749923185796,1e-08,104600.0,104590.0,3.35768385]
[1749923186294,1e-08,104600.0,104590.0,3.35768384]
[1749923186497,1e-08,104600.0,104590.0,3.35768378]
[1749923186700,0.092,104620.0,104610.0,0.1911151]
[1749923186701,0.02412491,104620.0,104610.0,0.1911151]
[1749923186990,0.0596363,104640.0,104630.0,0.1910786]
[1749923187192,0.44026005,104650.0,104640.0,0.1910603]
[1749923187396,0.48988256,104650.0,104640.0,0.7708091]
[1749923187597,0.4006808,104650.0,104640.0,0.7708091]
[1749923187800,0.4006808,104650.0,104640.0,0.77080915]
[1749923187994,0.4006808,104650.0,104640.0,0.75587411]
[1749923188497,0.47898163,104650.0,104640.0,0.75587411]
[1749923188693,0.47898163,104650.0,104640.0,0.77080895]
[1749923188895,0.47898163,104650.0,104640.0,0.77080888]
[1749923189095,0.47898163,104650.0,104640.0,0.77080886]
[1749923189402,0.47898163,104650.0,104640.0,0.77080889]
[1749923189897,0.48298163,104650.0,104640.0,0.5518603]
[1749923190098,0.54648163,104650.0,104640.0,0.5518603]
[1749923190298,0.56628163,104650.0,104640.0,0.56679522]
[1749923190592,0.56628163,104650.0,104640.0,0.56679524]
[1749923190798,0.56628163,104650.0,104640.0,0.5518603]
[1749923190987,0.56628163,104650.0,104640.0,0.56679524]
[1749923191397,0.59775622,104650.0,104640.0,0.5518603]
[1749923191599,0.59775622,104650.0,104640.0,0.56679523]
[1749923191793,0.59775622,104650.0,104640.0,0.56679524]
[1749923192595,0.59775622,104650.0,104640.0,0.5518603]
[1749923192795,0.59775622,104650.0,104640.0,0.56679522]
[1749923192996,0.59775622,104650.0,104640.0,0.5518603]
[1749923193198,0.59775622,104650.0,104640.0,0.56679523]
[1749923193396,0.59775622,104650.0,104640.0,0.56679522]
[1749923193598,0.59775622,104650.0,104640.0,0.5667952]
[1749923193799,0.59775622,104650.0,104640.0,0.56679523]
[1749923193991,0.59775622,104650.0,104640.0,0.5518603]
[1749923194197,0.59775622,104650.0,104640.0,0.56679523]
[1749923194596,0.40671172,104650.0,104640.0,0.56679523]
[1749923194796,0.40671172,104650.0,104640.0,0.5518603]
[1749923195101,0.59775392,104650.0,104640.0,0.57093353]
[1749923195906,0.59775392,104650.0,104640.0,0.57093355]
[1749923196103,0.59775392,104650.0,104640.0,0.5667952]
[1749923196602,0.59775392,104650.0,104640.0,0.56679522]
[1749923196996,0.59775392,104650.0,104640.0,0.75159522]
[1749923197401,0.59775392,104650.0,104640.0,0.75159521]
[1749923197793,0.59775392,104650.0,104640.0,0.75159522]
[1749923198103,0.59775392,104650.0,104640.0,0.7366603]
[1749923198495,0.59775392,104650.0,104640.0,0.75159522]
[1749923198995,0.59775392,104650.0,104640.0,0.7366603]
[1749923199201,0.59775392,104650.0,104640.0,0.75159522]
[1749923199500,0.75176773,104650.0,104640.0,0.56679522]
[1749923199901,0.75176773,104650.0,104640.0,0.7366603]
[1749923200202,0.80176773,104650.0,104640.0,0.7366603]
[1749923200405,0.80176773,104650.0,104640.0,0.75159524]
[1749923200594,0.80176773,104650.0,104640.0,0.7366603]
[1749923201106,0.80176773,104650.0,104640.0,0.56679524]
[1749923201304,0.80176773,104650.0,104640.0,0.7366603]
[1749923201499,0.80176773,104650.0,104640.0,0.75159523]
[1749923202099,0.80176773,104650.0,104640.0,0.7366603]
[1749923202305,0.80176773,104650.0,104640.0,0.56679523]
[1749923202501,0.80176773,104650.0,104640.0,0.75159521]
[1749923202803,0.80176773,104650.0,104640.0,0.7366603]
[1749923203402,0.80176773,104650.0,104640.0,0.75159521]
[1749923203706,0.80176773,104650.0,104640.0,0.7366603]
[1749923203906,0.80176773,104650.0,104640.0,0.75159522]
[1749923204205,0.80176773,104650.0,104640.0,0.7366603]
[1749923204706,0.80176773,104650.0,104640.0,0.75159522]
[1749923204707,0.74213143,104650.0,104640.0,0.75159522]
[1749923204906,0.74213143,104650.0,104640.0,0.3758603]
[1749923205104,0.74213143,104650.0,104640.0,0.39079548]
[1749923205294,0.74213143,104650.0,104640.0,0.3758603]
[1749923205495,0.74213143,104650.0,104640.0,0.39079548]
[1749923205693,0.74213143,104650.0,104640.0,0.3758603]
[1749923205898,0.74213143,104650.0,104640.0,0.39079557]
[1749923206103,0.74213143,104650.0,104640.0,0.3758603]
[1749923206301,0.74213143,104650.0,104640.0,0.39079556]
[1749923207202,0.74213143,104650.0,104640.0,0.39079557]
[1749923207608,0.74213143,104650.0,104640.0,0.3758603]
[1749923207911,0.74213143,104650.0,104640.0,0.39079557]
[1749923208213,0.74213143,104650.0,104640.0,0.39079558]
[1749923208606,0.86149567,104650.0,104640.0,0.3758603]
[1749923208806,0.86149567,104650.0,104640.0,0.39079558]
[1749923209006,0.86149567,104650.0,104640.0,0.42259558]
[1749923209411,0.86149567,104650.0,104640.0,0.4225956]
[1749923209613,0.86149567,104650.0,104640.0,0.4076603]
[1749923209814,0.86149567,104650.0,104640.0,0.4225956]
[1749923210810,0.86149567,104650.0,104640.0,0.4076603]
[1749923211006,0.86149567,104650.0,104640.0,0.4225956]
[1749923211405,0.86149567,104650.0,104640.0,0.4076603]
[1749923211607,0.86149567,104650.0,104640.0,0.4225956]
[1749923211811,0.86149567,104650.0,104640.0,0.4406603]
[1749923212113,0.86149567,104650.0,104640.0,0.4555956]
[1749923212309,0.86149567,104650.0,104640.0,0.4406603]
[1749923212618,0.83769567,104650.0,104640.0,0.4555956]
[1749923212815,0.83769567,104650.0,104640.0,0.8163956]
[1749923213108,0.63368186,104650.0,104640.0,0.45559538]
[1749923213414,0.83226148,104650.0,104640.0,0.67003992]
[1749923213614,0.60288186,104650.0,104640.0,0.68497498]
[1749923213809,0.83226148,104650.0,104640.0,1.04577502]
[1749923214715,0.802399,104650.0,104640.0,1.04577502]
[1749923215120,0.802399,104650.0,104640.0,1.04577501]
[1749923215308,0.802399,104650.0,104640.0,1.03083992]
[1749923215510,0.802399,104650.0,104640.0,1.04577501]
[1749923216116,0.802399,104650.0,104640.0,1.07747501]
[1749923216822,0.71289724,104650.0,104640.0,1.07747501]
[1749923217019,0.71289724,104650.0,104640.0,1.07747502]
[1749923218112,0.71289724,104650.0,104640.0,1.06253992]
[1749923218312,0.68019724,104650.0,104640.0,1.07747502]
[1749923218613,0.68019724,104650.0,104640.0,1.07747501]
[1749923218816,0.68019724,104650.0,104640.0,1.06253992]
[1749923219217,0.63019724,104650.0,104640.0,1.06253992]
[1749923219417,0.63019724,104650.0,104640.0,1.08161335]
[1749923219816,0.63019724,104650.0,104640.0,1.06667827]
[1749923220018,0.63019724,104650.0,104640.0,1.08161335]
[1749923220416,0.40081762,104650.0,104640.0,1.06667827]
[1749923220617,0.63019724,104650.0,104640.0,1.077475]
[1749923221111,0.63019724,104650.0,104640.0,1.07747502]
[1749923221516,0.63019724,104650.0,104640.0,1.08161337]
[1749923222017,0.63019724,104650.0,104640.0,1.06667827]
[1749923222217,0.63019724,104650.0,104640.0,1.08161337]
[1749923222413,0.63019724,104650.0,104640.0,1.06667827]
[1749923222616,0.63019724,104650.0,104640.0,1.06253992]
[1749923222817,0.63019724,104650.0,104640.0,1.07747501]
[1749923224124,0.63019724,104650.0,104640.0,1.077475]
[1749923224719,0.63019724,104650.0,104640.0,1.06253992]
[1749923224920,0.63019724,104650.0,104640.0,1.077475]
[1749923225113,0.63019724,104650.0,104640.0,1.06253992]
[1749923225315,0.63019724,104650.0,104640.0,1.07747478]
[1749923225619,0.63019724,104650.0,104640.0,1.07747482]
[1749923225821,0.63019724,104650.0,104640.0,1.07747469]
[1749923226022,0.63019724,104650.0,104640.0,1.07747478]
[1749923226514,0.40081762,104650.0,104640.0,1.07747478]
[1749923226710,0.63019724,104650.0,104640.0,1.07747478]
[1749923227117,0.40081762,104650.0,104640.0,1.07747478]
[1749923227315,0.71979357,104650.0,104640.0,1.07747478]
[1749923227622,0.71979357,104650.0,104640.0,1.08161313]
[1749923228021,0.68831898,104650.0,104640.0,1.12621428]
[1749923228224,0.26789716,104650.0,104640.0,1.71065953]
[1749923228420,0.15972685,104650.0,104640.0,1.99996233]
[1749923228622,0.05987009,104660.0,104650.0,0.1910422]
[1749923228825,0.05987009,104660.0,104650.0,2.00990195]
[1749923229222,0.05987009,104660.0,104650.0,2.0248339]
[1749923229418,0.05987009,104660.0,104650.0,1.96536504]
[1749923230218,0.05987009,104660.0,104650.0,1.95243309]
[1749923230422,0.05987009,104660.0,104650.0,1.96736505]
[1749923230728,0.05987009,104660.0,104650.0,2.79324505]
[1749923231323,0.00014324,104660.0,104650.0,2.79324504]
[1749923231529,0.00014324,104660.0,104650.0,2.79624504]
[1749923231726,0.00014324,104660.0,104650.0,2.84361309]
[1749923232028,0.00014324,104660.0,104650.0,2.85854504]
[1749923232329,0.07659925,104660.0,104650.0,2.85754504]
[1749923232524,0.00014324,104660.0,104650.0,2.85754505]
[1749923232727,0.00014324,104660.0,104650.0,1.84356543]
[1749923233031,0.19116714,104660.0,104650.0,3.08182505]
[1749923233530,0.29116714,104660.0,104650.0,3.08182505]
[1749923233833,0.10014324,104660.0,104650.0,3.08182505]
[1749923234022,0.10014324,104660.0,104650.0,3.06689309]
[1749923234332,0.00014324,104660.0,104650.0,3.08182505]
[1749923234626,0.10014324,104660.0,104650.0,3.08182505]
[1749923234830,0.10014324,104660.0,104650.0,3.06731378]
[1749923235028,0.10014324,104660.0,104650.0,3.11192505]
[1749923235426,0.10014324,104660.0,104650.0,3.06731356]
[1749923235626,0.10014324,104660.0,104650.0,3.06731364]
[1749923235831,0.10014324,104660.0,104650.0,3.05238182]
[1749923236032,0.10014324,104660.0,104650.0,3.06731367]
[1749923236332,0.10014324,104660.0,104650.0,3.06731376]
[1749923236530,0.10014324,104660.0,104650.0,3.05238182]
[1749923237133,0.17831683,104660.0,104650.0,3.06731376]
[1749923237824,0.17831683,104660.0,104650.0,3.05238182]
[1749923238024,0.17831683,104660.0,104650.0,3.06731376]
[1749923238231,0.17831683,104660.0,104650.0,3.05238182]
[1749923238729,0.17831683,104660.0,104650.0,1.86905414]
[1749923239035,0.17831683,104660.0,104650.0,3.05234182]
[1749923239221,0.17831683,104660.0,104650.0,3.06727376]
[1749923239427,0.17831683,104660.0,104650.0,3.06727379]
[1749923239735,0.36934073,104660.0,104650.0,3.06727379]
[1749923240735,0.17831683,104660.0,104650.0,3.05648017]
[1749923241032,0.17831683,104660.0,104650.0,3.07141214]
[1749923242932,0.17831683,104660.0,104650.0,2.84203247]
[1749923243236,0.17831683,104660.0,104650.0,3.07141209]
[1749923243538,0.17831683,104660.0,104650.0,3.05648017]
[1749923243724,0.17831683,104660.0,104650.0,3.07141211]
[1749923243924,0.17831683,104660.0,104650.0,3.05648017]
[1749923244126,0.17831683,104660.0,104650.0,3.07141211]
[1749923244829,0.23804368,104660.0,104650.0,3.07241211]
[1749923245233,0.15987009,104660.0,104650.0,3.07241211]
[1749923245429,0.05987009,104660.0,104650.0,3.07241211]
[1749923246032,0.05987009,104660.0,104650.0,3.07041211]
[1749923246232,0.05987009,104660.0,104650.0,2.84403249]
[1749923246431,0.05987009,104660.0,104650.0,3.07341211]
[1749923246635,0.05987009,104660.0,104650.0,2.83903249]
[1749923246838,0.05987009,104660.0,104650.0,3.07141211]
[1749923247139,0.05987009,104660.0,104650.0,2.84203249]
[1749923247339,0.05987009,104660.0,104650.0,3.07141211]
[1749923247540,0.05987009,104660.0,104650.0,3.07241211]
[1749923247838,0.05987009,104660.0,104650.0,3.28731211]
[1749923248039,0.05987009,104660.0,104650.0,3.27238017]
[1749923248840,0.05987009,104660.0,104650.0,3.30041938]
[1749923249042,0.00014324,104660.0,104650.0,3.30041938]
[1749923249238,0.05987009,104660.0,104650.0,3.30041938]
[1749923249539,0.00014324,104660.0,104650.0,3.30041938]
[1749923250935,0.05972685,104670.0,104660.0,0.1910239]
[1749923251143,0.05972685,104670.0,104660.0,1.22810352]
[1749923251337,0.17724172,104680.0,104670.0,0.1910057]
[1749923251535,0.38417396,104680.0,104670.0,0.86462838]
[1749923251732,0.57516146,104680.0,104670.0,1.83334838]
[1749923252140,0.38417396,104680.0,104670.0,1.83334838]
[1749923253046,0.61355358,104680.0,104670.0,1.8482797]
[1749923253252,0.80454098,104680.0,104670.0,1.8482797]
[1749923253945,0.57616136,104680.0,104670.0,1.8482797]
[1749923254739,0.48656503,104680.0,104670.0,1.8482797]
[1749923255434,0.42683818,104680.0,104670.0,1.83334838]
[1749923255643,0.48656503,104680.0,104670.0,1.83334838]
[1749923255944,0.48656503,104680.0,104670.0,1.8524166]
[1749923256347,0.48656503,104680.0,104670.0,1.83736673]
[1749923256547,0.48656503,104680.0,104670.0,1.8522966]
[1749923256950,0.71594465,104680.0,104670.0,1.8522966]
[1749923257548,0.74914465,104680.0,104670.0,1.8522966]
[1749923258147,0.74914465,104680.0,104670.0,1.85229661]
[1749923259244,0.753283,104680.0,104670.0,1.89276953]
[1749923259445,0.52390338,104680.0,104670.0,1.84815826]
[1749923259650,0.52390338,104680.0,104670.0,1.61877864]
[1749923259945,0.52390338,104680.0,104670.0,1.84815826]
[1749923260250,0.753283,104680.0,104670.0,1.84815826]
[1749923260651,0.753283,104680.0,104670.0,1.83322838]
[1749923260949,0.52390338,104680.0,104670.0,1.84815826]
[1749923262945,0.52390338,104680.0,104670.0,1.83322838]
[1749923263151,0.52390338,104680.0,104670.0,1.84815826]
[1749923263355,0.52390338,104680.0,104670.0,1.83322838]
[1749923263849,0.52390338,104680.0,104670.0,2.22815826]
[1749923264253,0.52390338,104680.0,104670.0,2.21322838]
[1749923264451,0.52390338,104680.0,104670.0,2.22815826]
[1749923264851,0.46417653,104680.0,104670.0,2.25783965]
[1749923265155,0.46417653,104680.0,104670.0,2.27276953]
[1749923266154,0.69355615,104680.0,104670.0,2.25783965]
[1749923266346,0.47427583,104680.0,104670.0,2.27276953]
[1749923266548,0.60157427,104680.0,104670.0,2.28903965]
[1749923266942,0.60157427,104680.0,104670.0,2.30396953]
[1749923267351,0.66130112,104680.0,104670.0,2.28903965]
[1749923267551,0.66130112,104680.0,104670.0,2.30396953]
[1749923268356,0.41635104,104680.0,104670.0,2.30396953]
[1749923268550,0.41635104,104680.0,104670.0,2.28903965]
[1749923268943,0.41635104,104680.0,104670.0,2.30396953]
[1749923270556,0.41635104,104680.0,104670.0,2.28903965]
[1749923270758,0.41635104,104680.0,104670.0,2.30396953]
[1749923270959,0.49092317,104680.0,104670.0,2.30396953]
[1749923271161,0.49092317,104680.0,104670.0,2.28903965]
[1749923271361,0.49092317,104680.0,104670.0,2.30396953]
[1749923271758,0.49092317,104680.0,104670.0,2.28903965]
[1749923272061,0.49092317,104680.0,104670.0,2.3039695]
[1749923272452,0.49092317,104680.0,104670.0,2.28903965]
[1749923272848,0.45772317,104680.0,104670.0,2.28903965]
[1749923273157,0.45772317,104680.0,104670.0,2.30396952]
[1749923274262,0.45772317,104680.0,104670.0,2.30396951]
[1749923274961,0.38315104,104680.0,104670.0,2.30396951]
[1749923276063,0.3558526,104680.0,104670.0,2.30396951]
[1749923276362,0.3558526,104680.0,104670.0,2.28903965]
[1749923276663,0.3558526,104680.0,104670.0,2.30496942]
[1749923276865,0.3548526,104680.0,104670.0,2.29203965]
[1749923277159,0.3548526,104680.0,104670.0,2.30696941]
[1749923277364,0.3548526,104680.0,104670.0,2.29203965]
[1749923277661,0.3548526,104680.0,104670.0,2.28203965]
[1749923277861,0.3548526,104680.0,104670.0,2.29696942]
[1749923278062,0.3548526,104680.0,104670.0,2.28203965]
[1749923278264,0.3548526,104680.0,104670.0,2.29696942]
[1749923278565,0.3548526,104680.0,104670.0,2.35643826]
[1749923278865,0.3548526,104680.0,104670.0,2.34150851]
[1749923279060,0.3548526,104680.0,104670.0,1.75705863]
[1749923279265,0.58423222,104680.0,104670.0,1.98643826]
[1749923280166,0.61174724,104680.0,104670.0,1.98643826]
[1749923280466,0.70134357,104680.0,104670.0,1.98643825]
[1749923280866,0.70134357,104680.0,104670.0,1.97150851]
[1749923281165,0.70134357,104680.0,104670.0,1.98643825]
[1749923282469,0.47196395,104680.0,104670.0,1.98643825]
[1749923282670,0.44444893,104680.0,104670.0,1.98643825]
[1749923284258,0.44444893,104680.0,104670.0,1.97150851]
[1749923284459,0.44444893,104680.0,104670.0,2.32150851]
[1749923284660,0.44444893,104680.0,104670.0,2.33643825]
[1749923284971,0.44444893,104680.0,104670.0,2.32150851]
[1749923285158,0.47230087,104680.0,104670.0,2.33643825]
[1749923285559,0.1638652,104680.0,104670.0,2.33643824]
[1749923285763,0.3548527,104680.0,104670.0,2.56581785]
[1749923285963,0.3548527,104680.0,104670.0,2.52120658]
[1749923285964,0.1638652,104680.0,104670.0,2.52120658]
[1749923286269,0.00413835,104680.0,104670.0,2.61040901]
[1749923286670,0.00413835,104680.0,104670.0,2.61040879]
[1749923286867,0.00413835,104680.0,104670.0,2.59548015]
[1749923287172,0.00413835,104680.0,104670.0,2.61040875]
[1749923288068,0.13678103,104690.0,104680.0,0.1909875]
[1749923288273,0.10014324,104690.0,104680.0,2.1588398]
[1749923288574,0.00014324,104690.0,104680.0,2.15883854]
[1749923288775,0.00014324,104690.0,104680.0,2.15883847]
[1749923288972,0.00014324,104690.0,104680.0,2.15883841]
[1749923289174,0.00014324,104690.0,104680.0,2.1439112]
[1749923289375,0.00014324,104690.0,104680.0,2.18845946]
[1749923289674,0.00014324,104690.0,104680.0,2.20338696]
[1749923289977,0.00014324,104690.0,104680.0,2.18845946]
[1749923290176,0.00014324,104690.0,104680.0,2.20338696]
[1749923290774,0.00014324,104690.0,104680.0,1.97400734]
[1749923290970,0.00014324,104690.0,104680.0,2.20338696]
[1749923291172,0.00014324,104690.0,104680.0,2.18845946]
[1749923291370,0.00014324,104690.0,104680.0,2.20338696]
[1749923291576,0.3245773,104700.0,104690.0,0.1909692]
[1749923291774,0.4823196,104700.0,104690.0,1.84506882]
[1749923291975,0.52947647,104700.0,104690.0,1.84506882]
[1749923292473,0.52947647,104700.0,104690.0,1.85999632]
[1749923292681,0.52533812,104700.0,104690.0,1.85999632]
[1749923292873,0.52733812,104700.0,104690.0,1.85999632]
[1749923293070,0.75671774,104700.0,104690.0,1.85999632]
[1749923293377,0.52733812,104700.0,104690.0,1.85999632]
[1749923293578,0.75671774,104700.0,104690.0,1.85999632]
[1749923293779,0.75671774,104700.0,104690.0,0.6158692]
[1749923293978,0.85601774,104700.0,104690.0,1.82841632]
[1749923294181,0.85601774,104700.0,104690.0,1.82841636]
[1749923294476,0.85601774,104700.0,104690.0,1.81348882]
[1749923294678,0.85601774,104700.0,104690.0,1.82841637]
[1749923294877,0.88588722,104700.0,104690.0,1.82841637]
[1749923295469,0.88588722,104700.0,104690.0,1.81348882]
[1749923295669,0.88588722,104700.0,104690.0,1.82841637]
[1749923296471,1.24668722,104700.0,104690.0,1.46761624]
[1749923296671,1.92583475,104700.0,104690.0,0.01492847]
[1749923296879,1.92583475,104700.0,104690.0,0.1909692]
[1749923297071,2.11003475,104700.0,104690.0,0.20589821]
[1749923297271,2.11003475,104700.0,104690.0,0.20589867]
[1749923297475,1.92583475,104700.0,104690.0,0.1909692]
[1749923297675,2.11003475,104700.0,104690.0,0.20589867]
[1749923298067,2.11003475,104700.0,104690.0,0.1909692]
[1749923298276,2.11003475,104700.0,104690.0,0.20589866]
[1749923298671,2.11003475,104700.0,104690.0,0.1909692]
[1749923299477,2.11003475,104700.0,104690.0,0.20589866]
[1749923299680,2.1141731,104700.0,104690.0,0.20589866]
[1749923300078,2.1141731,104700.0,104690.0,0.1909692]
[1749923300479,2.1141731,104700.0,104690.0,0.20589866]
[1749923300682,2.1141731,104700.0,104690.0,0.1909692]
[1749923300882,2.1141731,104700.0,104690.0,0.20589866]
[1749923301071,2.1141731,104700.0,104690.0,0.1909692]
[1749923301477,2.1141731,104700.0,104690.0,0.20589866]
[1749923301878,2.1141731,104700.0,104690.0,0.1909692]
[1749923302380,2.1141731,104700.0,104690.0,0.20589866]
[1749923303279,2.1141731,104700.0,104690.0,0.20589862]
[1749923303676,2.1141731,104700.0,104690.0,0.20589861]
[1749923303885,2.1141731,104700.0,104690.0,0.1909692]
[1749923304382,2.1141731,104700.0,104690.0,0.2058986]
[1749923304583,2.1141731,104700.0,104690.0,0.20589861]
[1749923305080,2.1141731,104700.0,104690.0,0.1909692]
[1749923305383,2.1141731,104700.0,104690.0,0.20589861]
[1749923305585,2.1141731,104700.0,104690.0,0.20589864]
[1749923305789,2.1141731,104700.0,104690.0,0.1909692]
[1749923305986,2.1141731,104700.0,104690.0,0.20589864]
[1749923306188,2.1141731,104700.0,104690.0,0.1909692]
[1749923306392,2.1141731,104700.0,104690.0,0.20589864]
[1749923306691,2.1141731,104700.0,104690.0,0.1909692]
[1749923306992,2.1141731,104700.0,104690.0,0.20589864]
[1749923307490,2.1141731,104700.0,104690.0,0.1909692]
[1749923307688,2.1141731,104700.0,104690.0,0.20589864]
[1749923308789,2.1141731,104700.0,104690.0,0.1909692]
[1749923309292,2.1141731,104700.0,104690.0,0.20589864]
[1749923310093,2.1141731,104700.0,104690.0,0.1909692]
[1749923310293,2.1141731,104700.0,104690.0,0.20589864]
[1749923310690,2.1141731,104700.0,104690.0,0.1909692]
[1749923311093,2.1141731,104700.0,104680.0,0.63525752]
[1749923311094,0.0954894,104690.0,104670.0,0.54829406]
[1749923311289,0.0954894,104690.0,104670.0,0.79232428]
[1749923311290,0.89078828,104680.0,104670.0,0.79232428]
[1749923311491,1.07678828,104680.0,104670.0,0.79232428]
[1749923311687,1.07678828,104680.0,104670.0,0.77827602]
[1749923312087,1.07678828,104680.0,104670.0,0.80947602]
[1749923312494,1.07678828,104680.0,104670.0,0.84107602]
[1749923313392,1.07678828,104680.0,104670.0,0.84307602]
[1749923314292,1.07678828,104680.0,104670.0,0.84007602]
[1749923315293,0.84740866,104680.0,104670.0,0.6106964]